fUST/lending_fUST_20250521
["ID","MTS","AMOUNT","RATE_DAILY","PERIOD"]
[361759737,1747765840701,-500.0,0.00017934,2]
[361759738,1747765840711,-500.0,0.00017934,2]
[361759739,1747765840721,-500.0,0.00017934,2]
[361759740,1747765840731,-266.0,0.00017934,2]
[361759741,1747765840741,-420.0,0.00017962,2]
[361759742,1747765840750,-858.02,0.00018082,2]
[361759743,1747765840759,-430.0,0.00018082,2]
[361759744,1747765840768,-840.83,0.00018082,2]
[361759745,1747765840778,-430.0,0.00018082,2]
[361759746,1747765840788,-430.0,0.00018082,2]
[361759747,1747765840797,-430.0,0.00018082,2]
[361759748,1747765840807,-430.0,0.00018082,2]
[361759749,1747765840817,-430.0,0.00018082,2]
[361759750,1747765840827,-430.0,0.00018082,2]
[361759751,1747765840836,-320.95,0.00018082,2]
[361759752,1747765840846,-3316.30409484,0.00018176,2]
[361759753,1747765840856,-476.71523576,0.00018319,2]
[361759754,1747765840866,-3214.5,0.00018356,2]
[361759755,1747765840876,-3214.5,0.00018356,2]
[361759756,1747765840890,-3214.5,0.00018356,2]
[361759757,1747765840899,-3214.5,0.00018356,2]
[361759758,1747765840909,-858.02,0.00018356,2]
[361759759,1747765840919,-430.0,0.00018356,2]
[361759760,1747765840928,-840.83,0.00018356,2]
[361759761,1747765840938,-430.0,0.00018356,2]
[361759762,1747765840947,-465.3391883,0.00018356,2]
[361759763,1747765840956,-430.0,0.00018356,2]
[361759764,1747765840966,-430.0,0.00018356,2]
[361759765,1747765840979,-430.0,0.00018356,2]
[361759766,1747765840989,-430.0,0.00018356,2]
[361759767,1747765840998,-3316.30409484,0.00018452,2]
[361759768,1747765841008,-858.02,0.0001863,2]
[361759769,1747765841017,-430.0,0.0001863,2]
[361759770,1747765841027,-840.83,0.0001863,2]
[361759771,1747765841037,-430.0,0.0001863,2]
[361759772,1747765841049,-430.0,0.0001863,2]
[361759773,1747765841073,-430.0,0.0001863,2]
[361759774,1747765841086,-430.0,0.0001863,2]
[361759775,1747765841095,-430.0,0.0001863,2]
[361759776,1747765841105,-29179.72360874,0.000187,2]
[361759777,1747765841115,-151.0,0.000187,2]
[361759778,1747765841124,-2987.7,0.000187,2]
[361759779,1747765841135,-2987.7,0.000187,2]
[361759780,1747765841145,-2987.7,0.000187,2]
[361759781,1747765841155,-2987.7,0.000187,2]
[361759782,1747765841164,-2987.7,0.000187,2]
[361759783,1747765841173,-2987.7,0.000187,2]
[361759784,1747765841183,-151.0,0.000187,2]
[361759785,1747765841192,-3316.30409484,0.00018728,2]
[361759786,1747765841201,-3796.63334606,0.000189,2]
[361759787,1747765841211,-858.02,0.00018904,2]
[361759788,1747765841220,-430.0,0.00018904,2]
[361759789,1747765841229,-840.83,0.00018904,2]
[361759790,1747765841239,-430.0,0.00018904,2]
[361759791,1747765841249,-430.0,0.00018904,2]
[361759792,1747765841258,-430.0,0.00018904,2]
[361759793,1747765841267,-430.0,0.00018904,2]
[361759794,1747765841276,-430.0,0.00018904,2]
[361759795,1747765841286,-3316.30409484,0.00019003,2]
[361759796,1747765841295,-858.02,0.00019178,2]
[361759797,1747765841306,-430.0,0.00019178,2]
[361759798,1747765841315,-840.83,0.00019178,2]
[361759799,1747765841324,-430.0,0.00019178,2]
[361759800,1747765841334,-430.0,0.00019178,2]
[361759801,1747765841344,-430.0,0.00019178,2]
[361759802,1747765841353,-221.1,0.00019178,2]
[361759803,1747765841362,-265.98719358,0.00019178,2]
[361759804,1747765841372,-155.0,0.00019178,2]
[361759805,1747765841385,-182.210899,0.00019178,2]
[361759806,1747765841394,-3316.30409484,0.00019279,2]
[361759807,1747765841404,-476.71523576,0.0001931,2]
[361759808,1747765841413,-151.0,0.000194,2]
[361759809,1747765841423,-151.0,0.000194,2]
[361759810,1747765841433,-858.02,0.00019452,2]
[361759811,1747765841442,-430.0,0.00019452,2]
[361759812,1747765841451,-840.83,0.00019452,2]
[361759813,1747765841460,-430.0,0.00019452,2]
[361759814,1747765841469,-430.0,0.00019452,2]
[361759815,1747765841479,-430.0,0.00019452,2]
[361759816,1747765841488,-3316.30409484,0.00019555,2]
[361759817,1747765841497,-587.0,0.0001963,2]
[361759818,1747765841507,-858.02,0.00019726,2]
[361759819,1747765841516,-430.0,0.00019726,2]
[361759820,1747765841525,-840.83,0.00019726,2]
[361759821,1747765841534,-430.0,0.00019726,2]
[361759822,1747765841544,-430.0,0.00019726,2]
[361759823,1747765841553,-430.0,0.00019726,2]
[361759824,1747765841563,-3316.30409484,0.00019831,2]
[361759825,1747765841572,-157.9,0.0002,2]
[361759826,1747765841582,-858.02,0.0002,2]
[361759827,1747765841592,-430.0,0.0002,2]
[361759828,1747765841601,-840.83,0.0002,2]
[361759829,1747765841610,-430.0,0.0002,2]
[361759830,1747765841620,-430.0,0.0002,2]
[361759831,1747765841632,-430.0,0.0002,2]
[361759832,1747765841642,-3316.30409484,0.00020107,2]
[361759833,1747765841652,-218.669104,0.00020187,2]
[361759834,1747765841661,-151.0,0.000202,3]
[361759835,1747765841671,-151.0,0.000202,4]
[361759836,1747765841681,-858.02,0.00020273,2]
[361759837,1747765841690,-430.0,0.00020273,2]
[361759838,1747765841700,-840.83,0.00020273,2]
[361759839,1747765841710,-347.76,0.00020273,2]
[361759840,1747765841721,-430.0,0.00020273,2]
[361759841,1747765841730,-319.1,0.00020273,2]
[361759842,1747765841740,-476.71523576,0.000203,2]
[361759843,1747765841749,-3316.30409484,0.00020383,3]
[361759844,1747765841758,-571.57,0.000204,14]
[361759845,1747765841767,-2332.936,0.00020441,2]
[361759846,1747765841777,-858.02,0.00020547,2]
[361759847,1747765841786,-307.30992102,0.00020547,2]
[361759848,1747765841795,-840.83,0.00020547,2]
[361759849,1747765841804,-430.0,0.00020547,2]
[361759850,1747765841813,-3316.30409484,0.00020659,3]
[361759851,1747765841823,-178.555,0.00020694,2]
[361759852,1747765841832,-315.628,0.00020694,2]
[361759853,1747765841841,-250.0,0.000207,2]
[361759854,1747765841850,-250.0,0.000207,2]
[361759855,1747765841859,-858.02,0.00020821,2]
[361759856,1747765841869,-840.83,0.00020821,2]
[361759857,1747765841879,-199.26,0.00020821,2]
[361759858,1747765841888,-4000.0,0.00020826,4]
[361759859,1747765841897,-151.0,0.000209,4]
[361759860,1747765841906,-571.57,0.000209,14]
[361759861,1747765841915,-151.0,0.000209,3]
[361759862,1747765841925,-3316.30409484,0.00020934,4]
[361759863,1747765841937,-151.0,0.00020991,2]
[361759864,1747765841947,-151.0,0.00020991,2]
[361759865,1747765841956,-207.4,0.00020991,2]
[361759866,1747765841965,-151.0,0.00021,3]
[361759867,1747765841978,-5000.0,0.00021026,2]
[361759868,1747765841987,-858.02,0.00021095,2]
[361759869,1747765841997,-840.83,0.00021095,2]
[361759870,1747765842007,-3316.30409484,0.0002121,4]
[361759871,1747765842016,-800.0,0.00021225,2]
[361759872,1747765842026,-858.02,0.00021369,2]
[361759873,1747765842035,-840.83,0.00021369,2]
[361759874,1747765842045,-223.0,0.00021452,2]
[361759875,1747765842056,-3316.30409484,0.00021486,5]
[361759876,1747765842066,-151.19434921,0.00021539,2]
[361759877,1747765842076,-858.02,0.00021643,2]
[361759878,1747765842085,-840.83,0.00021643,2]
[361759879,1747765842095,-151.0,0.000217,4]
[361759880,1747765842104,-151.0,0.000217,4]
[361759881,1747765842114,-151.0,0.000217,3]
[361759882,1747765842123,-3316.30409484,0.00021762,5]
[361759883,1747765842135,-158.1192336,0.00021863,2]
[361759884,1747765842145,-569.8226027,0.00021863,2]
[361759885,1747765842154,-569.8226027,0.00021863,2]
[361759886,1747765842163,-858.02,0.00021917,2]
[361759887,1747765842173,-164.72276067,0.00021917,2]
[361759888,1747765842182,-3812.58,0.00021917,2]
[361759889,1747765842191,-840.83,0.00021917,2]
[361759890,1747765842200,-593.9329685,0.00021918,2]
[361759891,1747765842211,-170.0,0.00022,2]
[361759892,1747765842222,-3316.30409484,0.00022038,6]
[361759893,1747765842232,-858.02,0.00022191,2]
[361759894,1747765842242,-840.83,0.00022191,2]
[361759895,1747765842252,-3316.30409484,0.00022314,7]
[361759898,1747765842261,-800.0,0.00022321,2]
[361759899,1747765842398,-151.0,0.0002236,2]
[361759900,1747765842409,-215.0738,0.0002236,2]
[361759901,1747765842420,-151.0,0.000224,7]
[361759902,1747765842432,-151.0,0.000224,7]
[361759903,1747765842442,-806.82,0.00022455,2]
[361759904,1747765842453,-858.02,0.00022465,2]
[361759906,1747765842463,-840.83,0.00022465,2]
[361759907,1747765842474,-151.0,0.000225,5]
[361759908,1747765842484,-806.82,0.00022555,6]
[361759909,1747765842494,-3316.30409484,0.0002259,7]
[361759910,1747765842504,-182.210899,0.00022603,2]
[361759911,1747765842514,-806.82,0.00022655,2]
[361759912,1747765842524,-569.8226027,0.00022712,2]
[361759913,1747765842535,-569.8226027,0.00022712,2]
[361759914,1747765842545,-175.9907377,0.00022712,2]
[361759915,1747765842556,-158.1192336,0.00022712,2]
[361759916,1747765842566,-175.9907377,0.00022712,2]
[361759917,1747765842576,-858.02,0.00022739,2]
[361759918,1747765842587,-841.03,0.00022739,2]
[361759919,1747765842597,-175.9907377,0.0002274,2]
[361759921,1747765842606,-158.1192336,0.0002274,2]
[361759923,1747765842616,-806.82,0.00022755,4]
[361759926,1747765842627,-806.82,0.00022855,6]
[361759929,1747765842640,-3316.30409484,0.00022866,8]
[361759932,1747765842650,-806.82,0.00022955,3]
[361759934,1747765842660,-500.0,0.00023,30]
[361759937,1747765842669,-500.0,0.00023,30]
[361759940,1747765842679,-500.0,0.00023,30]
[361759943,1747765842688,-500.0,0.00023,30]
[361759946,1747765842698,-500.0,0.00023,30]
[361759949,1747765842708,-500.0,0.00023,30]
[361759951,1747765842718,-500.0,0.00023,30]
[361759953,1747765842728,-500.0,0.00023,30]
[361759955,1747765842739,-500.0,0.00023,30]
[361759957,1747765842748,-500.0,0.00023,30]
[361759959,1747765842758,-500.0,0.00023,30]
[361759961,1747765842768,-500.0,0.00023,30]
[361759963,1747765842777,-500.0,0.00023,30]
[361759965,1747765842787,-500.0,0.00023,30]
[361759967,1747765842796,-500.0,0.00023,30]
[361759969,1747765842806,-500.0,0.00023,30]
[361759971,1747765842816,-500.0,0.00023,30]
[361759972,1747765842827,-700.0,0.00023,30]
[361759975,1747765842838,-806.82,0.00023055,7]
[361759976,1747765842849,-3316.30409484,0.00023141,8]
[361759978,1747765842859,-806.82,0.00023155,6]
[361759980,1747765842868,-151.0,0.000232,5]
[361759982,1747765842881,-151.0,0.000232,10]
[361759984,1747765842890,-151.0,0.000232,6]
[361759986,1747765842900,-151.0,0.000232,10]
[361759988,1747765842910,-806.82,0.00023255,5]
[361759990,1747765842919,-215.92099554,0.0002326,2]
[361759992,1747765842929,-806.82,0.00023355,2]
[361759994,1747765842939,-215.92099554,0.0002337,2]
[361759996,1747765842948,-151.0,0.00023417,7]
[361759998,1747765842957,-151.0,0.00023417,7]
[361760000,1747765842968,-151.0,0.00023417,7]
[361760003,1747765842980,-151.0,0.00023417,7]
[361760006,1747765842989,-800.0,0.00023417,2]
[361760009,1747765842999,-151.0,0.00023417,7]
[361760011,1747765843008,-180.215,0.00023417,7]
[361760012,1747765843018,-243.850477,0.00023417,7]
[361760014,1747765843028,-3316.30409484,0.00023417,9]
[361760016,1747765843037,-806.82,0.00023455,4]
[361760018,1747765843046,-151.0,0.00023455,7]
[361760020,1747765843057,-500.0,0.00023456,9]
[361760021,1747765843067,-500.0,0.00023456,9]
[361760023,1747765843076,-215.92099554,0.00023479,2]
[361760025,1747765843085,-153.0,0.00023534,2]
[361760027,1747765843094,-158.1192336,0.00023534,2]
[361760029,1747765843104,-569.8226027,0.00023534,2]
[361760031,1747765843113,-174.5828222,0.00023534,2]
[361760033,1747765843122,-158.1192336,0.00023534,2]
[361760035,1747765843134,-806.82,0.00023555,7]
[361760037,1747765843143,-151.0,0.00023555,7]
[361760040,1747765843153,-151.0,0.00023555,7]
[361760043,1747765843162,-151.0,0.00023555,7]
[361760046,1747765843172,-151.0,0.00023555,7]
[361760049,1747765843182,-151.0,0.00023555,7]
[361760051,1747765843191,-1135.4598521,0.00023562,2]
[361760053,1747765843201,-153.0,0.00023562,2]
[361760055,1747765843210,-351.9814754,0.00023562,2]
[361760057,1747765843219,-215.92099554,0.00023589,2]
[361760059,1747765843229,-806.82,0.00023655,7]
[361760061,1747765843238,-158.551293,0.00023661,7]
[361760063,1747765843247,-151.0,0.00023661,7]
[361760065,1747765843257,-151.0,0.00023661,7]
[361760066,1747765843266,-151.0,0.00023661,7]
[361760068,1747765843276,-151.0,0.00023661,7]
[361760070,1747765843285,-151.0,0.00023661,7]
[361760072,1747765843294,-151.0,0.00023661,7]
[361760074,1747765843304,-151.0,0.00023661,7]
[361760076,1747765843313,-168.507938,0.00023661,7]
[361760078,1747765843323,-151.0,0.00023661,7]
[361760080,1747765843334,-341.397916,0.00023661,7]
[361760082,1747765843344,-341.397916,0.00023661,7]
[361760084,1747765843353,-151.0,0.00023661,7]
[361760086,1747765843362,-162.892813,0.00023661,7]
[361760088,1747765843371,-162.892813,0.00023661,7]
[361760090,1747765843382,-852.634038,0.00023661,2]
[361760092,1747765843392,-151.0,0.00023661,7]
[361760094,1747765843402,-151.0,0.00023661,7]
[361760096,1747765843411,-852.634038,0.00023661,2]
[361760098,1747765843420,-151.0,0.00023661,7]
[361760100,1747765843430,-151.0,0.00023661,7]
[361760101,1747765843439,-151.0,0.00023661,7]
[361760103,1747765843448,-151.0,0.00023661,7]
[361760105,1747765843458,-168.872301,0.00023661,7]
[361760107,1747765843468,-168.872301,0.00023661,7]
[361760109,1747765843477,-415.941491,0.00023661,7]
[361760111,1747765843486,-151.0,0.00023661,7]
[361760113,1747765843496,-415.941491,0.00023661,7]
[361760115,1747765843506,-151.0,0.00023661,7]
[361760117,1747765843519,-151.0,0.00023661,7]
[361760119,1747765843530,-151.0,0.00023661,7]
[361760121,1747765843539,-151.0,0.00023661,7]
[361760123,1747765843548,-151.0,0.00023661,7]
[361760125,1747765843558,-151.0,0.00023661,7]
[361760127,1747765843568,-151.0,0.00023661,7]
[361760129,1747765843578,-204575.94219249,0.00023661,2]
[361760131,1747765843588,-151.0,0.00023661,7]
[361760133,1747765843598,-151.494088,0.00023661,7]
[361760135,1747765843610,-151.0,0.00023661,7]
[361760137,1747765843620,-217.869877,0.00023661,7]
[361760139,1747765843634,-151.0,0.00023661,7]
[361760141,1747765843644,-151.0,0.00023661,7]
[361760143,1747765843653,-243.850477,0.00023661,7]
[361760145,1747765843664,-3316.30409484,0.00023693,9]
[361760147,1747765843673,-215.92099554,0.00023699,2]
[361760149,1747765843683,-250.0,0.000237,2]
[361760151,1747765843694,-250.0,0.000237,2]
[361760153,1747765843703,-250.0,0.000237,2]
[361760155,1747765843713,-250.0,0.000237,2]
[361760157,1747765843723,-282.4,0.000237,2]
[361760159,1747765843732,-199.7262,0.00023729,2]
[361760161,1747765843743,-806.82,0.00023755,5]
[361760163,1747765843752,-9264.88616244,0.000238,2]
[361760177,1747765843885,-213.44011328,0.000238,2]
[361760179,1747765843895,-165.96162361,0.000238,2]
[361760181,1747765843905,-215.92099554,0.00023808,2]
[361760183,1747765843915,-58.07859784,0.0002382,2]
[361760200,1747765844085,-243.850477,0.00023417,7]
[361760202,1747765844095,-230.70292543,0.00023661,7]
[361760204,1747765844111,-13.14755157,0.00023661,7]
[361760206,1747765844121,-151.0,0.00023661,7]
[361760208,1747765844131,-441.92140216,0.0002382,2]
[361760210,1747765844142,-64.53104627,0.0002382,2]
[361760212,1747765844154,-435.46895373,0.0002382,2]
[361760214,1747765844164,-500.0,0.00023855,2]
[361760216,1747765844174,-310.95336491,0.00023855,2]
[361760240,1747765844408,-308.1848464,0.00018841,2]
[361760242,1747765844417,-404.0,0.00019722,2]
[361760244,1747765844426,-404.0,0.00022722,2]
[361760246,1747765844436,-289.04663509,0.00023855,2]
[361760248,1747765844446,-806.82,0.00023855,5]
[361760250,1747765844455,-22202.14450377,0.000239,15]
[361760252,1747765844467,-62573.1223385,0.000239,15]
[361760254,1747765844481,-6775.2899837,0.000239,15]
[361760257,1747765844498,-14297.44730078,0.000239,15]
[361760259,1747765844510,-3363.85243609,0.000239,15]
[361760391,1747765846177,-316.98136783,0.00016438,2]
[361760392,1747766334786,-2025.0,0.00015786,2]
[361760393,1747766559308,-169.66225518,0.00013699,2]
[361760394,1747766561754,-27.13993782,0.00013699,2]
[361760395,1747766601026,-200.48582334,0.00015686,2]
[361760396,1747766601050,-249.51417666,0.00015786,2]
[361760397,1747766669818,-151.0,0.000135,2]
[361760400,1747766930707,-1830.0,0.00015786,2]
[361760437,1747767032267,-133.58783541,0.00015786,2]
[361760438,1747767032277,-268.96159575,0.00015945,2]
[361760439,1747767032287,-161.37695745,0.00015945,2]
[361760440,1747767032296,-300.0,0.00016337,2]
[361760441,1747767032306,-1200.0,0.00016337,2]
[361760442,1747767032316,-300.0,0.00016337,2]
[361760443,1747767032325,-361.86212747,0.00016338,2]
[361760444,1747767032334,-4650.46145941,0.00016338,2]
[361760452,1747767032426,-1413.04038528,0.00016338,2]
[361760454,1747767032435,-1775.7568469,0.00016361,2]
[361760456,1747767032445,-500.0,0.00016437,2]
[361760457,1747767032456,-500.0,0.00016437,2]
[361760459,1747767032465,-500.0,0.00016437,2]
[361760461,1747767032474,-500.0,0.00016437,2]
[361760463,1747767032484,-500.0,0.00016437,2]
[361760465,1747767032493,-500.0,0.00016437,2]
[361760467,1747767032502,-500.0,0.00016437,2]
[361760469,1747767032511,-500.0,0.00016437,2]
[361760470,1747767032521,-500.0,0.00016437,2]
[361760472,1747767032530,-500.0,0.00016437,2]
[361760474,1747767032539,-500.0,0.00016437,2]
[361760476,1747767032548,-500.0,0.00016437,2]
[361760478,1747767032557,-500.0,0.00016437,2]
[361760480,1747767032566,-500.0,0.00016437,2]
[361760482,1747767032575,-500.0,0.00016437,2]
[361760484,1747767032584,-277.99036704,0.00016437,2]
[361760486,1747767032593,-500.0,0.00016437,2]
[361760488,1747767032602,-500.0,0.00016437,2]
[361760490,1747767032611,-500.0,0.00016437,2]
[361760491,1747767032620,-216.21553866,0.00016437,2]
[361760493,1747767032630,-500.0,0.00016437,2]
[361760495,1747767032640,-500.0,0.00016437,2]
[361760497,1747767032649,-500.0,0.00016437,2]
[361760499,1747767032657,-500.0,0.00016437,2]
[361760501,1747767032667,-353.43764488,0.00016437,2]
[361760503,1747767032675,-500.0,0.00016437,2]
[361760505,1747767032684,-500.0,0.00016437,2]
[361760507,1747767032693,-312.11379004,0.00016437,2]
[361760509,1747767032702,-500.0,0.00016437,2]
[361760511,1747767032711,-500.0,0.00016437,2]
[361760513,1747767032720,-500.0,0.00016437,2]
[361760514,1747767032729,-400.0,0.00016438,2]
[361760516,1747767032738,-450.0,0.00016438,2]
[361760518,1747767032747,-450.0,0.00016438,2]
[361760520,1747767032756,-551.46579146,0.00016438,2]
[361760522,1747767032765,-256.2250846,0.00016438,2]
[361760524,1747767032774,-450.0,0.00016438,2]
[361760526,1747767032783,-450.0,0.00016438,2]
[361760528,1747767032792,-450.0,0.00016438,2]
[361760530,1747767032801,-523.24934284,0.00016438,2]
[361760531,1747767032810,-450.0,0.00016438,2]
[361760532,1747767032819,-450.0,0.00016438,2]
[361760533,1747767032828,-300.0,0.00016438,2]
[361760534,1747767032837,-450.0,0.00016438,2]
[361760535,1747767032846,-450.0,0.00016438,2]
[361760536,1747767032855,-450.0,0.00016438,2]
[361760537,1747767032864,-356.68708832,0.00016438,2]
[361760538,1747767032873,-209.8044688,0.00016438,2]
[361760539,1747767032884,-450.0,0.00016438,2]
[361760540,1747767032893,-450.0,0.00016438,2]
[361760541,1747767032903,-303.41280074,0.00016438,2]
[361760542,1747767032912,-450.0,0.00016438,2]
[361760543,1747767032921,-450.0,0.00016438,2]
[361760544,1747767032931,-245.96963375,0.00016438,2]
[361760545,1747767032941,-450.0,0.00016438,2]
[361760546,1747767032950,-450.0,0.00016438,2]
[361760547,1747767032959,-450.0,0.00016438,2]
[361760548,1747767032968,-450.0,0.00016438,2]
[361760549,1747767032977,-450.0,0.00016438,2]
[361760550,1747767032987,-450.0,0.00016438,2]
[361760551,1747767032996,-450.0,0.00016438,2]
[361760552,1747767033005,-450.0,0.00016438,2]
[361760553,1747767033015,-450.0,0.00016438,2]
[361760554,1747767033024,-450.0,0.00016438,2]
[361760555,1747767033034,-450.0,0.00016438,2]
[361760556,1747767033044,-450.0,0.00016438,2]
[361760557,1747767033053,-450.0,0.00016438,2]
[361760558,1747767033064,-450.0,0.00016438,2]
[361760559,1747767033073,-450.0,0.00016438,2]
[361760560,1747767033083,-450.0,0.00016438,2]
[361760561,1747767033093,-450.0,0.00016438,2]
[361760562,1747767033102,-450.0,0.00016438,2]
[361760563,1747767033112,-450.0,0.00016438,2]
[361760564,1747767033122,-450.0,0.00016438,2]
[361760565,1747767033133,-450.0,0.00016438,2]
[361760566,1747767033142,-450.0,0.00016438,2]
[361760567,1747767033152,-302.67000296,0.00016438,2]
[361760568,1747767033161,-450.0,0.00016438,2]
[361760569,1747767033171,-450.0,0.00016438,2]
[361760570,1747767033181,-450.0,0.00016438,2]
[361760571,1747767033191,-461.54501572,0.00016438,2]
[361760572,1747767033200,-450.0,0.00016438,2]
[361760573,1747767033210,-450.0,0.00016438,2]
[361760574,1747767033220,-450.0,0.00016438,2]
[361760575,1747767033229,-450.0,0.00016438,2]
[361760576,1747767033239,-450.0,0.00016438,2]
[361760577,1747767033249,-450.0,0.00016438,2]
[361760578,1747767033259,-450.0,0.00016438,2]
[361760579,1747767033269,-450.0,0.00016438,2]
[361760580,1747767033278,-450.0,0.00016438,2]
[361760581,1747767033288,-450.0,0.00016438,2]
[361760582,1747767033297,-450.0,0.00016438,2]
[361760583,1747767033307,-450.0,0.00016438,2]
[361760584,1747767033316,-450.0,0.00016438,2]
[361760585,1747767033326,-220.99057526,0.00016438,2]
[361760586,1747767033336,-450.0,0.00016438,2]
[361760587,1747767033346,-450.0,0.00016438,2]
[361760588,1747767033356,-450.0,0.00016438,2]
[361760589,1747767033365,-450.0,0.00016438,2]
[361760590,1747767033375,-450.0,0.00016438,2]
[361760591,1747767033394,-450.0,0.00016438,2]
[361760592,1747767033404,-450.0,0.00016438,2]
[361760593,1747767033414,-450.0,0.00016438,2]
[361760594,1747767033426,-182.44597801,0.00016438,2]
[361760595,1747767033436,-450.0,0.00016438,2]
[361760596,1747767033448,-450.0,0.00016438,2]
[361760597,1747767033459,-450.0,0.00016438,2]
[361760598,1747767033476,-450.0,0.00016438,2]
[361760599,1747767033486,-450.0,0.00016438,2]
[361760600,1747767033495,-450.0,0.00016438,2]
[361760601,1747767033505,-450.0,0.00016438,2]
[361760602,1747767033516,-450.0,0.00016438,2]
[361760603,1747767033525,-548.12,0.00016438,2]
[361760604,1747767033535,-450.0,0.00016438,2]
[361760605,1747767033545,-450.0,0.00016438,2]
[361760606,1747767033555,-450.0,0.00016438,2]
[361760607,1747767033565,-450.0,0.00016438,2]
[361760608,1747767033576,-450.0,0.00016438,2]
[361760609,1747767033586,-450.0,0.00016438,2]
[361760610,1747767033597,-450.0,0.00016438,2]
[361760611,1747767033606,-450.0,0.00016438,2]
[361760612,1747767033616,-450.0,0.00016438,2]
[361760613,1747767033625,-450.0,0.00016438,2]
[361760614,1747767033638,-450.0,0.00016438,2]
[361760615,1747767033648,-450.0,0.00016438,2]
[361760616,1747767033657,-450.0,0.00016438,2]
[361760617,1747767033667,-450.0,0.00016438,2]
[361760618,1747767033677,-450.0,0.00016438,2]
[361760619,1747767033688,-450.0,0.00016438,2]
[361760620,1747767033697,-450.0,0.00016438,2]
[361760621,1747767033708,-450.0,0.00016438,2]
[361760622,1747767033718,-450.0,0.00016438,2]
[361760623,1747767033728,-450.0,0.00016438,2]
[361760624,1747767033739,-525.48,0.00016438,2]
[361760625,1747767033749,-430.0,0.00016438,2]
[361760626,1747767033759,-450.0,0.00016438,2]
[361760627,1747767033769,-430.0,0.00016438,2]
[361760628,1747767033779,-450.0,0.00016438,2]
[361760629,1747767033789,-450.0,0.00016438,2]
[361760630,1747767033799,-450.0,0.00016438,2]
[361760631,1747767033813,-450.0,0.00016438,2]
[361760632,1747767033826,-450.0,0.00016438,2]
[361760633,1747767033838,-450.0,0.00016438,2]
[361760634,1747767033851,-450.0,0.00016438,2]
[361760635,1747767033863,-540.58986683,0.00016438,2]
[361760636,1747767033876,-472.09,0.00016438,2]
[361760637,1747767033892,-356.99122783,0.00016438,2]
[361760638,1747767033903,-450.0,0.00016438,2]
[361760639,1747767033914,-301.21740877,0.00016438,2]
[361760640,1747767033927,-450.0,0.00016438,2]
[361760641,1747767033940,-450.0,0.00016438,2]
[361760642,1747767033951,-531.32,0.00016438,2]
[361760643,1747767033963,-450.0,0.00016438,2]
[361760644,1747767033973,-450.0,0.00016438,2]
[361760645,1747767033987,-450.0,0.00016438,2]
[361760646,1747767033998,-450.0,0.00016438,2]
[361760647,1747767034011,-450.0,0.00016438,2]
[361760648,1747767034023,-450.0,0.00016438,2]
[361760649,1747767034035,-450.0,0.00016438,2]
[361760650,1747767034047,-250.0,0.00016438,2]
[361760651,1747767034059,-456.98,0.00016438,2]
[361760652,1747767034071,-430.0,0.00016438,2]